{"text_format":"1","workbook":"xlsx","n_sheets":4,"sheets":["Renseignez_vos_informations","Détail_réalisations","Aide_demandée","Param"],"not_rendered":{"charts":0,"images":1,"macros":1,"external_links":0,"defined_names":17,"comments":0,"pivot_tables":0},"unopened":[],"bounds":{"document_bytes":16777216,"sheet_cells":100000,"rows_first":2000,"rows_last":500,"rows_between":2000,"halvings":0,"cell_chars":16384,"cell_head_chars":4096},"cells_cut":0,"cells_raw":0,"read":"whole","date_system":"1900"}

{"sheet":"Renseignez_vos_informations","index":0,"n_rows":81,"n_cols":14,"rows_kept":81,"cut":false,"hidden":false,"merged":[[80,1,80,7],[75,8,75,10],[71,11,71,12],[72,11,72,12],[73,11,73,12],[74,11,74,12],[75,11,75,12],[71,1,71,2],[72,1,72,2],[73,1,73,2],[74,1,74,2],[50,4,50,6],[76,11,76,12],[70,4,70,7],[77,11,77,12],[24,1,24,5],[70,11,70,12],[73,4,73,7],[74,4,74,7],[14,2,14,13],[16,2,16,13],[18,2,18,13],[72,8,72,10],[73,8,73,10],[74,8,74,10],[71,4,71,7],[71,8,71,10],[44,4,44,6],[45,4,45,6],[46,4,46,6],[47,4,47,6],[48,4,48,6],[49,4,49,6],[12,2,12,13],[75,1,75,2],[76,1,76,2],[75,4,75,7],[76,4,76,7],[54,1,54,2],[58,1,58,2],[60,1,60,2],[61,1,61,3],[64,1,64,4],[66,1,66,2],[66,5,66,6],[68,2,68,3],[70,1,70,2],[69,1,69,4],[72,4,72,7],[51,7,51,11],[6,1,8,16],[32,1,32,4],[34,1,34,3],[76,8,76,10],[37,1,37,10],[43,1,43,2],[43,4,43,6],[43,7,43,11],[52,1,52,2],[20,2,20,13],[22,2,22,13],[26,1,26,12],[28,2,28,5],[29,2,29,10],[10,2,10,13],[44,7,44,11],[45,7,45,11],[46,7,46,11],[51,4,51,6],[44,1,44,2],[45,1,45,2],[46,1,46,2],[47,1,47,2],[48,1,48,2],[49,1,49,2],[50,1,50,2],[51,1,51,2],[47,7,47,11],[48,7,48,11],[49,7,49,11],[50,7,50,11]]}
[]
[]
[]
[]
[]
[]
[null,"DEMANDE D’AIDE planification écologique - investissements pour des matériels contribuant à la transition agro-écologique dans les départements d’outre-mer "]
[]
[]
[]
[null,"N° SIRET : "]
[]
[null,"Code NAF:"]
[]
[null,"Raison sociale :"]
[]
[null,"Forme juridique :"]
[]
[null,"Adresse : "]
[]
[null,"Code postal : "]
[]
[null,"Commune :"]
[]
[null,"Demande déposée par une exploitation de lycée agricole  ou ITA via leur station expérimentale"]
[]
[null," Demande déposée par une coopérative telles que définies dans les annexes 1 et 2 de l’arrêté du 20 février 2020 portant homologation des modèles de statuts des sociétés coopératives agricoles. "]
[null,null,"Si oui, précisez:"]
[null,null,"type  1-production, collecte et vente de produits agricoles et forestiers"]
[null,null,"type 2-production, collecte et vente de produits agricoles et forestiers à l’exception des articles 3, 7, 8, 9,11, 12, 14, 20, 29,35,40,47,48,50"]
[null,null,"Autres types"]
[]
[null,"Demande déposée par une CUMA constituée uniquement d’exploitants agricoles: ",null,null,null,"NON"]
[]
[null,"Demande déposée par une ETA ou OP reconnue ou un GIEE"]
[null,null,"Si oui, précisez: "]
[]
[null,"Déclaration des aides et plafond du réglement de minimis"]
[null,"Déclaration des aides de minimis perçues ou demandées sur l’année en cours et les deux années précédents le dépôt de la présente demande"]
[null,"Ce tableau doit être renseigné par le demandeur."]
[null,"Dans le cas d’une aide demandée non encore reçue, indiquez la date de demande en lieu et place de la date d’octroi ou paiement. Si vous n’avez jamais eu/demandé d’aide de minimis, au moins une ligne doit être saisie avec 0 en montants, une date fictive (celle du jour par exemple) et « aucune aide » dans l’intitulé."]
[null,"Vous êtes responsable de votre déclaration de minimis. Toute irrégularité constatée entraînera une réduction de l’aide ou un recouvrement."]
[null,"Les aides de minimis peuvent être gérées par une collectivité locale, un établissement public (comme FranceAgriMer), la MSA, les DDT, etc. Le caractère de minimis (R(UE) 2023/2831) est indiqué sur le formulaire de demande d’aide et sur la notification de paiement."]
[null,"Intitulé de l'aide",null,"Date d'octroi","Montant figurant dans la décision d'octroi",null,null,"Montant des aides minimis demandées mais pas encore reçues"]
[]
[]
[]
[]
[]
[]
[]
[null,"Total",null,null,{"$f":"SUM(E45:G51)","v":0},null,null,{"$f":"SUM(H45:L51)","v":0}]
[null,"Montant total des minimis",null,{"$f":"E52+H52","v":0}]
[]
[null,"Demande déposée par un individuel"]
[null,"Si oui, précisez:"]
[null,"Date de naissance :                  "]
[null,"Date d’installation :"]
[null,"Bonification du taux d’aide :       "]
[]
[null,"Demande déposée par une société: "]
[null,"Veuillez préciser l’objet de cette société (*) :"]
[null,null,null,"ayant un objet agricole"]
[null,null,null,"ou autres"]
[null,"Si vous avez choisis \"autres\", merci de compléter le tableau suivant:"]
[]
[null,"Nombre d’exploitations regroupées :                   ",null,null,null,"Nombre d’associés :"]
[]
[null,"                                                        ","A renseigner uniquement pour les GAEC"]
[null,"Tableau des associés exploitants (Veuillez renseigner pour chaque associé)"]
[null,"Société ou personne physique",null,"Date de naissance","Associé exploitant Société ou personne physique",null,null,null,"Date de première installation",null,null,"Nombre de parts sociales",null,"% représenté"]
[]
[]
[]
[]
[]
[]
[null,"TOTAL: "]
[null,"Bonification du taux d’aide (SI JA ou NI) :"]
[]
[null,"Demande déposée par un demandeur dont le siège est situé dans les DOM (Guadeloupe, Martinique, Guyane, La Réunion, Mayotte)"]

{"sheet":"Détail_réalisations","index":1,"n_rows":14,"n_cols":10,"rows_kept":14,"cut":false,"hidden":false,"merged":[[0,0,0,9],[3,0,4,0],[3,1,4,1],[3,2,4,2],[3,3,4,3],[3,4,4,4],[3,5,4,5],[3,6,4,6],[3,7,4,7],[3,8,4,8],[3,9,4,9],[2,0,2,3]]}
["DÉTAIL DE LA RÉALISATION DES INVESTISSEMENTS "]
[]
["Remaruqe: Cliquez sur les colonnes orange pour dérouller la liste et séléctioner votre choix"]
["Materiels\nChoisissez parmi:","Production concernée ","Type d’équipement\nChoisissez parmi:","Détail de l’investissement\nChoisissez parmi: ","Nb","Prix Unitaire HT \nde l’équipement","Montant des dépenses ","Taux d’aide de base \nappliqué","Taux de bonification\n appliqué","Montant d’aide \ncalculé"]
[]
[]
[null,null,null,null,null,null,{"$f":"F7*E7","v":0},null,null,{"$f":"G7*(H7+I7)/100","v":0}]
[null,null,null,null,null,null,0,null,null,0]
[null,null,null,null,null,null,0,null,null,0]
[null,null,null,null,null,null,0,null,null,0]
[null,null,null,null,null,null,0,null,null,0]
[null,null,null,null,null,null,0,null,null,0]
[null,null,null,null,null,null,0,null,null,0]
[null,null,null,null,null,null,0,null,null,0]

{"sheet":"Aide_demandée","index":2,"n_rows":6,"n_cols":2,"rows_kept":6,"cut":false,"hidden":false,"merged":[[0,0,0,1]]}
["Résultats des calculs"]
["Remarque: Merci de ne pas modifier ce tableau"]
["Montant total des dépenses",0]
["Montant d'aide calculé",0]
["Plafond de dépense",60000]
["Montant d'aide demandée après plafond ",0]

{"sheet":"Param","index":3,"n_rows":187,"n_cols":5,"rows_kept":187,"cut":false,"hidden":true,"merged":[]}
["materiel","production","equipement "]
["Irrigation","Multifilières","Irrigation"]
["Buses, pulvérisateurs et descentes","Multifilières","Buses, pulvérisateurs et descentes"]
[" B-Stockage","Multifilières","B-Stockage"]
["E-Serres, tunnels (> 80 cm), autres équipements prod végétale","Multifilières","E-Serres, tunnels (> 80 cm), autres équipements prod végétale"]
["Matériel de travail du sol / gestion de l'enherbement","Multifilières","Matériel de travail du sol / gestion de l'enherbement"]
["Matériel de prophylaxie / matériel de protection contre les aléas ","Multifilières","Matériel de prophylaxie / matériel de protection contre les aléas "]
["Matériel de mesure et contrôle","Multifilières","Matériel de mesure et contrôle"]
["Matériel de récolte / post récolte","Multifilières","Matériel de récolte / post récolte"]
["Agriculture de précision","Multifilières","Agriculture de précision"]
["Matériel de culture et élevage","Multifilières","Matériel de culture et élevage"]
["Matériel de culture","Multifilières","Matériel de culture"]
["Amendement et fertilisation","Multifilières","Amendement et fertilisation"]
["Autres matériels","Multifilières","Autres matériels"]
[]
[]
[]
[]
[]
["Liste invest"]
[]
["TYPE INVEST",null,"TYPE EQUIPEMENT","TYPE EQUIPEMENT","Equivalent"]
["PE105-ORE Gouttières pour récupération d'eau de drainage pour cultures hors sol",null,1,"Irrigation"]
["PE106-ORE Unité fixe de traitement de l'eau pour l'irrigation des cultures.",null,1,"Irrigation"]
["PE122-ORE Equipement de pose ou de reprise des réseaux de système d'irrigation par goutte à goutte",null,1,"Irrigation"]
["PE123-ORE Mécanisation de la pose et dépose des tuyaux de micro-irrigation par goutte à goutte réutilisabl",null,1,"Irrigation"]
["PE125-OAD Sonde tensiométrique avec relevé manuel ou relevé automatique ou relevé automatique et télétrans",null,1,"Irrigation"]
["PE126-OAD Sonde capacitive avec relevé manuel ou relevé automatique ou relevé automatique et télétransmiss",null,1,"Irrigation"]
["PE127-OAD Capteur dendrométrique avec relevé manuel ou relevé automatique ou relevé automatique télétransm",null,1,"Irrigation"]
["PE129-ORE Goutte-à-goutte de surface",null,1,"Irrigation"]
["PE130-ORE Goutte-à-goutte enterré",null,1,"Irrigation"]
["PE168-Système de stockage d'eau",null,1,"Irrigation"]
["PE169-Pompe solaire automatique",null,1,"Irrigation"]
["PE170-Filtres autonettoyants",null,1,"Irrigation"]
["PE171-Goutière et Citerne pour le stockage de l'eau",null,1,"Irrigation"]
["PE44-RDI Dispositifs de pulvérisation de précision permettant le contrôle de buses ou de tronçons via la",null,2,"Buses_pulvérisateurs_et_descentes"]
["PE45-RDI Dispositifs de pulvérisation de précision : coupure de buses ou de tronçons en l?absence de végé",null,2,"Buses_pulvérisateurs_et_descentes"]
["PE46-RDI Asservissement pulvérisateur",null,2,"Buses_pulvérisateurs_et_descentes"]
["PE47-RDI Capteur optique pour modulation intra-parcellaire",null,2,"Buses_pulvérisateurs_et_descentes"]
["PE48-RDI Coupure de tronçon par GPS",null,2,"Buses_pulvérisateurs_et_descentes"]
["PE49-RDI Porte buse à selection automatique",null,2,"Buses_pulvérisateurs_et_descentes"]
["PE51-RDI Pulvérisateur (Performance Pulvé) classe 1",null,2,"Buses_pulvérisateurs_et_descentes"]
["PE52-RDI Pulvérisateur (Performance Pulvé) classe 2",null,2,"Buses_pulvérisateurs_et_descentes"]
["PE53-RDI Pulvérisateur équipé de descentes avec panneaux récupérateurs",null,2,"Buses_pulvérisateurs_et_descentes"]
["PE54-RDI Pulvérisateur à flux tangentiel",null,2,"Buses_pulvérisateurs_et_descentes"]
["PE69-RDI Rampe de pulvérisation localisée ou ultra-localisée sur le rang",null,2,"Buses_pulvérisateurs_et_descentes"]
["PE70-RDI Systèmes de pulvérisation ciblé (spot spraying) en temps réel ou avec cartographie",null,2,"Buses_pulvérisateurs_et_descentes"]
["PE71-RDI Capteurs et gestion de la hauteur de rampe",null,2,"Buses_pulvérisateurs_et_descentes"]
["PE97-SPP Automate de gestion des différents paramètres des bâtiments de stockage (température, hygrométri",null,3," B_Stockage"]
["PE98-SPP Sondes de mesure (température, hygrométrie) des tubercules stockés et de l'air extérieur",null,3," B_Stockage"]
["PE99-SPP Groupe froid",null,3," B_Stockage"]
["PE136-SPP Palox de conservation",null,3," B_Stockage"]
["PE196-Container stockage climatisé solaire",null,3," B_Stockage"]
["PE215-Système de pilotage automatisé de la ventilation (stockage du grain sans insecticide)",null,3," B_Stockage"]
["PE218-Ventilateur (stockage de pomme de terre sans anti-germinatif de synthèse)",null,3," B_Stockage"]
["PE219-Variateur de vitesse des ventilateurs (onduleur) (stockage de pomme de terre sans anti-germinatif de synthèse)",null,3," B_Stockage"]
["PE220-Ventilateur (stockage du grain sans insecticide)",null,3," B_Stockage"]
["PE75-ACC Déshumidificateurs : système de déshumidification avec air extérieur / déshumidificateur thermod",null,4,"E_Serres_tunnels_80_cm_autres_équipements_prod_végétale"]
["PE76-E Brasseur d'air",null,4,"E_Serres_tunnels_80_cm_autres_équipements_prod_végétale"]
["PE78-ACT Serre de zone vent 5",null,4,"E_Serres_tunnels_80_cm_autres_équipements_prod_végétale"]
["PE81-E Ecran d'ombrage",null,4,"E_Serres_tunnels_80_cm_autres_équipements_prod_végétale"]
["PE132-ACT Gouttières de cultures",null,4,"E_Serres_tunnels_80_cm_autres_équipements_prod_végétale"]
["PE197-Extracteur d'air autonome",null,4,"E_Serres_tunnels_80_cm_autres_équipements_prod_végétale"]
["PE198-\"Guyaserre\" ",null,4,"E_Serres_tunnels_80_cm_autres_équipements_prod_végétale"]
["PE199-Serre type \"parapluie pieds droits\"",null,4,"E_Serres_tunnels_80_cm_autres_équipements_prod_végétale"]
["PE200-Serre type \"pieds droits type tropical\" (ouverture au faitage)",null,4,"E_Serres_tunnels_80_cm_autres_équipements_prod_végétale"]
["PE207-Serres bâchées avec paroi en filet 3x2mm",null,4,"E_Serres_tunnels_80_cm_autres_équipements_prod_végétale"]
["PE217-Ecran thermique horizontal au-dessus des cultures /écran thermique latéral ",null,4,"E_Serres_tunnels_80_cm_autres_équipements_prod_végétale"]
["PE06-SPP Désherbeur rotatifs à dents mobiles",null,5,"Materiel_de_travail_du_sol_gestion_de_l_enherbement"]
["PE09-SPP Désherbineuse",null,5,"Materiel_de_travail_du_sol_gestion_de_l_enherbement"]
["PE11-SPP Matériel de sarclage des flancs des buttes",null,5,"Materiel_de_travail_du_sol_gestion_de_l_enherbement"]
["PE13-SPP Robot de désherbage",null,5,"Materiel_de_travail_du_sol_gestion_de_l_enherbement"]
["PE14-SPP Rouleaux destructeurs de couverts végétaux",null,5,"Materiel_de_travail_du_sol_gestion_de_l_enherbement"]
["PE15-SPP Toile tissée Hors Sol perméable pour couverture des billons ou lignes de culture",null,5,"Materiel_de_travail_du_sol_gestion_de_l_enherbement"]
["PE16-SPP Bineuse simple ou Bineuse interrang",null,5,"Materiel_de_travail_du_sol_gestion_de_l_enherbement"]
["PE19-SPP Herse étrille",null,5,"Materiel_de_travail_du_sol_gestion_de_l_enherbement"]
["PE20-SPP Herse roto-étrille ou étrilles rotatives",null,5,"Materiel_de_travail_du_sol_gestion_de_l_enherbement"]
["PE21-SPP Houe rotative",null,5,"Materiel_de_travail_du_sol_gestion_de_l_enherbement"]
["PE22-SPP Intercep",null,5,"Materiel_de_travail_du_sol_gestion_de_l_enherbement"]
["PE25-SPP Sarcleuse à dents inter-rangs",null,5,"Materiel_de_travail_du_sol_gestion_de_l_enherbement"]
["PE26-SPP Scalpeur avec rotor animé",null,5,"Materiel_de_travail_du_sol_gestion_de_l_enherbement"]
["PE27-SPP Scalpeurs à dents",null,5,"Materiel_de_travail_du_sol_gestion_de_l_enherbement"]
["PE40-SPP Matériel électroportatif de binage, sarclage et desherbage",null,5,"Materiel_de_travail_du_sol_gestion_de_l_enherbement"]
["PE41-SPP Strip Till",null,5,"Materiel_de_travail_du_sol_gestion_de_l_enherbement"]
["PE56-SPP Désherbeur /défaneur électrique",null,5,"Materiel_de_travail_du_sol_gestion_de_l_enherbement"]
["PE57-SPP Désherbeur /défaneur mécanique",null,5,"Materiel_de_travail_du_sol_gestion_de_l_enherbement"]
["PE58-SPP Désherbeur /défaneur micro-ondes",null,5,"Materiel_de_travail_du_sol_gestion_de_l_enherbement"]
["PE60-SPP Désherbeur/ Défaneur thermique sur planche",null,5,"Materiel_de_travail_du_sol_gestion_de_l_enherbement"]
["PE61-SPP Désherbeur/ Défaneur vapeur",null,5,"Materiel_de_travail_du_sol_gestion_de_l_enherbement"]
["PE62-SPP Désherbeur /défaneur à l'eau chaude",null,5,"Materiel_de_travail_du_sol_gestion_de_l_enherbement"]
["PE63-SPP Désherbeur Laser",null,5,"Materiel_de_travail_du_sol_gestion_de_l_enherbement"]
["PE64-SPP Systèmes de désherbage par brosse rotative hydraulique",null,5,"Materiel_de_travail_du_sol_gestion_de_l_enherbement"]
["PE65-SPP Matériel de fauche sous clôture",null,5,"Materiel_de_travail_du_sol_gestion_de_l_enherbement"]
["PE104-SPP Désherbeur / défaneur thermique",null,5,"Materiel_de_travail_du_sol_gestion_de_l_enherbement"]
["PE117-ACT Broyeur",null,5,"Materiel_de_travail_du_sol_gestion_de_l_enherbement"]
["PE119-ACT Tondobroyeur  Rotavator",null,5,"Materiel_de_travail_du_sol_gestion_de_l_enherbement"]
["PE121-ACT Sécateur électrique",null,5,"Materiel_de_travail_du_sol_gestion_de_l_enherbement"]
["PE137-ORE Matériel de formation de diguettes en interbuttes",null,5,"Materiel_de_travail_du_sol_gestion_de_l_enherbement"]
["PE138-ACT Matériel d'effacement de diguettes en interbuttes",null,5,"Materiel_de_travail_du_sol_gestion_de_l_enherbement"]
["PE202-Micro pelle",null,5,"Materiel_de_travail_du_sol_gestion_de_l_enherbement"]
["PE210-Desherbeur thermique",null,5,"Materiel_de_travail_du_sol_gestion_de_l_enherbement"]
["PE211-Toile de Paillage",null,5,"Materiel_de_travail_du_sol_gestion_de_l_enherbement"]
["PE212-Pailleuse, mulcheuse (conteneur ou plein champ)   derouleuse paillage  ",null,5,"Materiel_de_travail_du_sol_gestion_de_l_enherbement"]
["PE213-Butteuse à disque ou à soc/ avec ou sans outils de gestion de l'enherbement \nBilloneuse",null,5,"Materiel_de_travail_du_sol_gestion_de_l_enherbement"]
["PE221-Débroussailleuse à lames / à dos ou de pente telecommandée",null,5,"Materiel_de_travail_du_sol_gestion_de_l_enherbement"]
["PE222-Semoir de semis sur paillage/couvert végétal / semoir inter rang et semis direct / semoir multi espèces",null,5,"Materiel_de_travail_du_sol_gestion_de_l_enherbement"]
["PE28-SPP Récupérateur de menues paille",null,6,"Matériel_de_prophylaxie_matériel_de_protection_contre_les_aléas "]
["PE29-SPP Robot aspirateur des ravageurs",null,6,"Matériel_de_prophylaxie_matériel_de_protection_contre_les_aléas "]
["PE30-SPP Filet anti insecte",null,6,"Matériel_de_prophylaxie_matériel_de_protection_contre_les_aléas "]
["PE150-SPP Bâches antipluie",null,6,"Matériel_de_prophylaxie_matériel_de_protection_contre_les_aléas "]
["PE151-ACC Filet d'ombrage",null,6,"Matériel_de_prophylaxie_matériel_de_protection_contre_les_aléas "]
["PE173-Filet brise vent",null,6,"Matériel_de_prophylaxie_matériel_de_protection_contre_les_aléas "]
["PE206-Pièges à rat automatiques pneumatiques (type goodnature)",null,6,"Matériel_de_prophylaxie_matériel_de_protection_contre_les_aléas "]
["PE214-Abri climatique fixe ou amovible",null,6,"Matériel_de_prophylaxie_matériel_de_protection_contre_les_aléas "]
["PE142-ORE Station météo connectée avec capteurs associés (pluviomètre, anémomètre, capteur pour calcul de",null,7,"Materiel_de_mesure_et_contrôle"]
["PE80-ACT Chariot de récolte",null,8,"Materiel_de_recolte_post_recolte"]
["PE110-ACT Tapis de récolte déroulant électrique ou hydraulique, seul ou avec remorque légumière",null,8,"Materiel_de_recolte_post_recolte"]
["PE115-ACT Robot pelle",null,8,"Materiel_de_recolte_post_recolte"]
["PE133-ACT Pareuse mobile",null,8,"Materiel_de_recolte_post_recolte"]
["PE153-ACT Automotrice d'assistance de cueillette électrique : plateforme ou nacelle",null,8,"Materiel_de_recolte_post_recolte"]
["PE154-ACT Machine de récolte mécanique des fruits en verger par tige",null,8,"Materiel_de_recolte_post_recolte"]
["PE155-ACT Filet de récolte et son enrouleur",null,8,"Materiel_de_recolte_post_recolte"]
["PE175-Récolteuse de tubercules",null,8,"Materiel_de_recolte_post_recolte"]
["PE176-Motoculteur + outils",null,8,"Materiel_de_recolte_post_recolte"]
["PE179-Récolteuse de pomme de terre",null,8,"Materiel_de_recolte_post_recolte"]
["PE23-SPP Matériel de réglage automatique de la pression des dents de herse étrille",null,9,"Agriculture_de_precision"]
["PE24-SPP Outils de guidage munis de palpeurs",null,9,"Agriculture_de_precision"]
["PE66-SPP Guidage actif, systèmes de guidage autonomes pour bineuse et désherbineuse",null,9,"Agriculture_de_precision"]
["PE141-ACT Exosquelettes",null,10,"Materiel_de_culture_et_elevage"]
["PE209-Matériel pour préparation d'aliment à la ferme",null,10,"Materiel_de_culture_et_elevage"]
["PE107-ACT Perche élagueuse électrique",null,11,"Materiel_de_culture"]
["PE108-ACT Robot autonome équipé d'un panneau solaire (mobile)",null,11,"Materiel_de_culture"]
["PE131-ACT Planteuse d'ananas",null,11,"Materiel_de_culture"]
["PE172-Enjambeur automoteur vermande type MR 1125-2 avec broyeur inter roue, rampe de fertilisation de 12m et porte caisse",null,11,"Materiel_de_culture"]
["PE174-Tronçonneuse ou mini tronçonneuse / taille haie",null,11,"Materiel_de_culture"]
["PE177-Porte-outils",null,11,"Materiel_de_culture"]
["PE178-Planteuse de pomme de terre",null,11,"Materiel_de_culture"]
["PE180-Quad agricole + uniquement éligible si attelé à un matériel de la liste",null,11,"Materiel_de_culture"]
["PE201-Mini et micro tracteur ",null,11,"Materiel_de_culture"]
["PE203-Brouette ou dumper thermiques ou électrique à roues ou a chenille",null,11,"Materiel_de_culture"]
["PE204-Rouleaux destinés à tasser la plante de service",null,11,"Materiel_de_culture"]
["PE205-Tarières thermiques ou électriques Plantation",null,11,"Materiel_de_culture"]
["PE73-Injecteur",null,12,"Amendement_et_fertilisation"]
["PE74-Enfouisseur",null,12,"Amendement_et_fertilisation"]
["PE124-RDI Fertidoseur pour engrais minéraux ou organiques",null,12,"Amendement_et_fertilisation"]
["PE139-RDI Epandeur pour effluents solides et liquides certifié éco épandage",null,12,"Amendement_et_fertilisation"]
["PE164-Couverture de fosse ou de lagune (étanche aux gaz et aux précipitations)",null,12,"Amendement_et_fertilisation"]
["PE165-Citerne souple autoportante  (étanche aux gaz et aux précipitations)",null,12,"Amendement_et_fertilisation"]
["PE166-Rampe à pendillards à tubes (Rampe équipée de tuyaux suspendus à moins de 30 cm du sol)",null,12,"Amendement_et_fertilisation"]
["PE167-Rampe à patins ou sabots",null,12,"Amendement_et_fertilisation"]
["PE181-Epandeur à fumier/compost",null,12,"Amendement_et_fertilisation"]
["PE186-Mixeur à lisier / Broyeur malaxeur",null,12,"Amendement_et_fertilisation"]
["PE187-Epandeur à fumier",null,12,"Amendement_et_fertilisation"]
["PE188-Epandeur \"porté\" 3 points à planche ",null,12,"Amendement_et_fertilisation"]
["PE189-DPA simplifié",null,12,"Amendement_et_fertilisation"]
["PE190-Epandeur à fumier avec hotte dépandage",null,12,"Amendement_et_fertilisation"]
["PE191-Epandeur à fumier à éjection latérale",null,12,"Amendement_et_fertilisation"]
["PE192-Tonne à lisier avec épandage de précision",null,12,"Amendement_et_fertilisation"]
["PE193-Epandeur à fumier pour micro-tracteur (15 à 50ch)",null,12,"Amendement_et_fertilisation"]
["PE194-Epandeur d'engrais localisé avec DPA",null,12,"Amendement_et_fertilisation"]
["PE195-Epandeur à fumier pour petit tracteur (50 à 100ch)",null,12,"Amendement_et_fertilisation"]
["PE216-Buses anti-dérives",null,12,"Amendement_et_fertilisation"]
["PE37-SPP Dédrageonneuse",null,13,"Autres_materiels"]
["PE208-Matériel de cloture (physique et électrique)",null,13,"Autres_materiels"]
[]
[]
[]
[]
["Invest","Taux d'aide de base"]
["Irrigation",65]
["Sinon",75]
[]
[]
[]
[]
["Réponse:"]
["OUI"]
["NON"]
[]
[]
["Personne physique"]
["Société"]
[]
["Bonif/"]
[5]
[0]
["CUMA",{"$f":"Renseignez_vos_informations!G33","v":0}]